{"text_format":"1","workbook":"xlsx","n_sheets":3,"sheets":["évaluation","liste étudiants","Liste compétences"],"not_rendered":{"charts":0,"images":0,"macros":1,"external_links":0,"defined_names":4,"comments":1,"pivot_tables":0},"unopened":[],"bounds":{"document_bytes":16777216,"sheet_cells":100000,"rows_first":2000,"rows_last":500,"rows_between":2000,"halvings":0,"cell_chars":16384,"cell_head_chars":4096},"cells_cut":0,"cells_raw":0,"read":"whole","date_system":"1900"}

{"sheet":"évaluation","index":0,"n_rows":22,"n_cols":21,"rows_kept":22,"cut":false,"hidden":false,"merged":[[0,10,0,11],[14,7,21,7],[0,8,0,9],[0,1,0,6],[2,0,2,1],[8,2,8,6],[3,0,3,3],[11,2,11,6],[9,2,9,6],[10,2,10,6],[8,7,11,7],[12,7,13,7],[14,2,14,6],[15,2,15,6],[16,2,16,6],[17,2,17,6],[3,4,3,6],[2,14,2,20],[5,8,5,12],[6,11,6,12],[18,2,18,6],[6,8,6,10],[7,8,7,10],[7,11,7,12],[4,0,7,1],[4,2,7,6],[12,2,12,6],[13,2,13,6],[20,2,20,6],[8,0,13,1],[14,0,16,1],[18,0,19,1],[17,0,17,1],[20,0,21,1],[21,2,21,6],[19,2,19,6]]}
["TITRE : ","Efficacité des systèmes d’éclairages public",null,null,null,null,null,null,"Date"]
[]
["Noms des étudiants du groupe",null,"Choisir un nom",{"$f":"IF(SUM($I9:$I22)=0,0,ROUNDUP(SUM(J9:J22)*40/SUM($I9:$I22),0)/2)","v":0},"Choisir un autre nom",{"$f":"IF(SUM($I9:$I22)=0,0,ROUNDUP(SUM(L9:L22)*40/SUM($I9:$I22),0)/2)","v":0},"TSE",null,null,null,null,null,null,null,"Compétences"]
["Remarques : \n",null,null,null,"Remarques :",null,null,null,"Poids de la tâche","Note brute",{"$f":"\"Niveau de réussite (0, 1, 2, ou 3) \"&C3","v":"Niveau de réussite (0, 1, 2, ou 3) Choisir un nom"},"Note brute",{"$f":"\"Niveau de réussite (0, 1, 2, ou 3) \"&E3","v":"Niveau de réussite (0, 1, 2, ou 3) Choisir un autre nom"},null,"C01 Analyser un dossier","C03 Analyser une solution technique","C04 Rédiger un document de synthèse","C06 Respecter une procédure","C07 Argumenter sur la solution technique retenue","C18 Interpréter des indicateurs, des résultats de mesure et essais","C20 Régler les paramètres"]
["Étude proposée",null," Activités ou tâches ",null,null,null,null,null,null,null,null,null,null,null,1,1,1,1,1,1,1]
[null,null,null,null,null,null,null,null,"poids de la compétence",null,null,null,null,null,{"$f":"SUMPRODUCT(O9:O22)","v":7},9,6,5,7,3,2]
[null,null,null,null,null,null,null,null,"Niveau de réussite",null,null,{"$f":"C3","v":"Choisir un nom"},null,null,{"$f":"IF(O6=0,\"\",SUMPRODUCT(O9:O29,$J$9:$J$29)/SUMPRODUCT($I9:$I29,O9:O29))","v":0},0,0,0,0,0,0]
[null,null,null,null,null,null,null,null,"Niveau de réussite",null,null,{"$f":"E3","v":"Choisir un autre nom"},null,null,{"$f":"IF(O6=0,\"\",SUMPRODUCT(O9:O29,$L$9:$L$29)/SUMPRODUCT($I9:$I29,O9:O29))","v":0},0,0,0,0,0,0]
["Préparation",null,"Recherchez et comparez suivant des critères de durées de vie, rendu des couleurs, efficacité, les sources de lumière",null,null,null,null,null,{"$f":"SUMPRODUCT($O$5:$AD$5,O9:AD9)","v":1},{"$f":"$I9*K9/3","v":0},null,{"$f":"$I9*M9/3","v":0},null,null,1]
[null,null,"Pourquoi les lampes à vapeur de sodium basse pression se trouvent essentiellement dans les tunnels ?",null,null,null,null,null,{"$f":"SUMPRODUCT($O$5:$AD$5,O10:AD10)","v":2},{"$f":"$I10*K10/3","v":0},null,0,null,null,1,1]
[null,null,"Pourquoi les lampes à vapeur de mercure sont interdites à la vente depuis de 2015 ?",null,null,null,null,null,2,0,null,0,null,null,1,1]
[null,null,"Pourquoi Les lampes à Iodure métalliques sont réservées à la mise en valeur des sites architecturaux urbains ?",null,null,null,null,null,2,0,null,0,null,null,1,1]
[null,null,"Qu’est-ce que le système LUBIO ? présentez son principe.",null,null,null,null,null,4,0,null,0,null,null,1,1,1,null,1]
[null,null,"Qu’est-ce que la pollution lumineuse des villes ? Quels impacts sur notre vie ?",null,null,null,null,null,2,0,null,0,null,null,null,1,1]
["Essais et mesures",null,"Contraintes sur les lampes",null,null,null,null,null,2,0,null,0,{"$f":"K15","v":0},null,1,1]
[null,null,"Bilan énergétique de l’ensemble des lampes en alimentation directe",null,null,null,null,null,2,0,null,0,0,null,null,null,null,1,1]
[null,null,"Bilan énergétique sous tension nominale du LUBIO",null,null,null,null,null,2,0,null,0,0,null,null,null,null,1,1]
["Exploitation",null,"Réglage du LUBIO ",null,null,null,null,null,6,0,null,0,0,null,1,1,null,1,1,null,2]
["Étude économique",null,"Calculer la consommation d’énergie en kWh",null,null,null,null,null,2,0,null,0,0,null,null,null,1,1]
[null,null,"Chiffrer en pourcentage les économies réalisées par le LUBIO",null,null,null,null,null,3,0,null,0,0,null,null,1,1,1]
[" Conclusion",null,"Que pensez-vous de ce système de gestion d’éclairage public ?",null,null,null,null,null,5,0,null,0,{"$f":"K21","v":0},null,null,1,1,null,2,1]
[null,null,"Pour une puissance installée de 5 kW, quelles sont les économies réalisées par an ?",null,null,null,null,null,{"$f":"SUMPRODUCT($O$5:$AD$5,O22:AD22)","v":4},0,null,0,{"$f":"K22","v":0},null,null,null,1,null,1,2]

{"sheet":"liste étudiants","index":1,"n_rows":34,"n_cols":2,"rows_kept":34,"cut":false,"hidden":false,"merged":[]}
["NOM Prénom","NOM Prénom"]
["Choisir un nom","Choisir un autre nom"]
["Étudiant 1",{"$f":"IF(A3=\"\",\"\",IF(évaluation!C$3='liste étudiants'!A3,\"\",A3))","v":"Étudiant 1"}]
["Étudiant 2",{"$f":"IF(A4=\"\",\"\",IF(évaluation!C$3='liste étudiants'!A4,\"\",A4))","v":"Étudiant 2"}]
["Étudiant 3",{"$f":"IF(A5=\"\",\"\",IF(évaluation!C$3='liste étudiants'!A5,\"\",A5))","v":"Étudiant 3"}]
["Étudiant 4",{"$f":"IF(A6=\"\",\"\",IF(évaluation!C$3='liste étudiants'!A6,\"\",A6))","v":"Étudiant 4"}]
["Étudiant 5",{"$f":"IF(A7=\"\",\"\",IF(évaluation!C$3='liste étudiants'!A7,\"\",A7))","v":"Étudiant 5"}]
["Étudiant 6",{"$f":"IF(A8=\"\",\"\",IF(évaluation!C$3='liste étudiants'!A8,\"\",A8))","v":"Étudiant 6"}]
["Étudiant 7",{"$f":"IF(A9=\"\",\"\",IF(évaluation!C$3='liste étudiants'!A9,\"\",A9))","v":"Étudiant 7"}]
["Étudiant 8",{"$f":"IF(A10=\"\",\"\",IF(évaluation!C$3='liste étudiants'!A10,\"\",A10))","v":"Étudiant 8"}]
["Étudiant 9",{"$f":"IF(A11=\"\",\"\",IF(évaluation!C$3='liste étudiants'!A11,\"\",A11))","v":"Étudiant 9"}]
["Étudiant 10",{"$f":"IF(A12=\"\",\"\",IF(évaluation!C$3='liste étudiants'!A12,\"\",A12))","v":"Étudiant 10"}]
["Étudiant 11",{"$f":"IF(A13=\"\",\"\",IF(évaluation!C$3='liste étudiants'!A13,\"\",A13))","v":"Étudiant 11"}]
["Étudiant 12",{"$f":"IF(A14=\"\",\"\",IF(évaluation!C$3='liste étudiants'!A14,\"\",A14))","v":"Étudiant 12"}]
["Étudiant 13",{"$f":"IF(A15=\"\",\"\",IF(évaluation!C$3='liste étudiants'!A15,\"\",A15))","v":"Étudiant 13"}]
["Étudiant 14",{"$f":"IF(A16=\"\",\"\",IF(évaluation!C$3='liste étudiants'!A16,\"\",A16))","v":"Étudiant 14"}]
["Étudiant 15",{"$f":"IF(A17=\"\",\"\",IF(évaluation!C$3='liste étudiants'!A17,\"\",A17))","v":"Étudiant 15"}]
["Étudiant 16",{"$f":"IF(A18=\"\",\"\",IF(évaluation!C$3='liste étudiants'!A18,\"\",A18))","v":"Étudiant 16"}]
["Étudiant 17",{"$f":"IF(A19=\"\",\"\",IF(évaluation!C$3='liste étudiants'!A19,\"\",A19))","v":"Étudiant 17"}]
["Étudiant 18",{"$f":"IF(A20=\"\",\"\",IF(évaluation!C$3='liste étudiants'!A20,\"\",A20))","v":"Étudiant 18"}]
["Étudiant 19",{"$f":"IF(A21=\"\",\"\",IF(évaluation!C$3='liste étudiants'!A21,\"\",A21))","v":"Étudiant 19"}]
["Étudiant 20",{"$f":"IF(A22=\"\",\"\",IF(évaluation!C$3='liste étudiants'!A22,\"\",A22))","v":"Étudiant 20"}]
["Étudiant 21",{"$f":"IF(A23=\"\",\"\",IF(évaluation!C$3='liste étudiants'!A23,\"\",A23))","v":"Étudiant 21"}]
["Étudiant 22",{"$f":"IF(A24=\"\",\"\",IF(évaluation!C$3='liste étudiants'!A24,\"\",A24))","v":"Étudiant 22"}]
["Étudiant 23",{"$f":"IF(A25=\"\",\"\",IF(évaluation!C$3='liste étudiants'!A25,\"\",A25))","v":"Étudiant 23"}]
["Étudiant 24",{"$f":"IF(A26=\"\",\"\",IF(évaluation!C$3='liste étudiants'!A26,\"\",A26))","v":"Étudiant 24"}]
[null,{"$f":"IF(A27=\"\",\"\",IF(évaluation!C$3='liste étudiants'!A27,\"\",A27))","v":""}]
[null,{"$f":"IF(A28=\"\",\"\",IF(évaluation!C$3='liste étudiants'!A28,\"\",A28))","v":""}]
[null,{"$f":"IF(A29=\"\",\"\",IF(évaluation!C$3='liste étudiants'!A29,\"\",A29))","v":""}]
[null,{"$f":"IF(A30=\"\",\"\",IF(évaluation!C$3='liste étudiants'!A30,\"\",A30))","v":""}]
[null,{"$f":"IF(A31=\"\",\"\",IF(évaluation!C$3='liste étudiants'!A31,\"\",A31))","v":""}]
[null,{"$f":"IF(A32=\"\",\"\",IF(évaluation!C$3='liste étudiants'!A32,\"\",A32))","v":""}]
[null,{"$f":"IF(A33=\"\",\"\",IF(évaluation!C$3='liste étudiants'!A33,\"\",A33))","v":""}]
[null,{"$f":"IF(A34=\"\",\"\",IF(évaluation!C$3='liste étudiants'!A34,\"\",A34))","v":""}]

{"sheet":"Liste compétences","index":2,"n_rows":34,"n_cols":1,"rows_kept":34,"cut":false,"hidden":false,"merged":[]}
["Choisir une compétence"]
["C01 Analyser un dossier"]
["C02 Choisir une solution technique"]
["C03 Analyser une solution technique"]
["C04 Rédiger un document de synthèse"]
["C05 Déterminer les ressources et les contraintes"]
["C06 Respecter une procédure"]
["C07 Argumenter sur la solution technique retenue"]
["C08 Concevoir une solution technique"]
["C09 Élaborer les dossiers techniques"]
["C10 Réaliser les représentations graphiques nécessaires"]
["C11 Estimer les coûts prévisionnels"]
["C12 Concevoir une procédure"]
["C13 Appliquer les normes"]
["C14 Analyser les causes de disfonctionnement"]
["C15 Estimer les délais de réalisation"]
["C16 Élaborer un support de formation"]
["C17 Mettre en oeuvre des moyens de mesurage"]
["C18 Interpréter des indicateurs, des résultats de mesure et essais"]
["C19 Identifier les paramètres de réglage"]
["C20 Régler les paramètres"]
["C21 Réaliser un ouvrage, un équipement ou un produit"]
["C22 Déterminer les différentes tâches"]
["C23 Planifier les tâches en tenant compte des réalisations et interventions des autres corps de métier concernés par la performance énergétique"]
["C24 Suivre la réalisation"]
["C25 Analyser un planning"]
["C26 Contrôler la conformité d'un produit"]
["C27 Estimer les délais d'approvisionnement"]
["C28 Communiquer de façon adaptée à la situation"]
["C29 Exercer une responsabilité hiérarchique"]
["C30 Ordonnancer des opérations de maintenance"]
["C31 Intervenir sur une installation"]
["C32 Interpréter la demande du client"]
["C33 Animer une réunion"]